Workbook

Sheet Capital Gains
B2: Calculer l'effet de l'augmentation de l'inclusion du gain en capital le ou après le 25 juin 2024 selon la province de taxation | F2: Exemple des taux d'imposition des gains en capital avant et après le 25 juin 2024
B3: Sélectionner la province en utilisant le menu déroulant (cliquez dans la cellule de droite) | C3: QC | F3: Montant du gain en capital total | G3: Taux de gain en capital actuel | H3: Impôts avant le 25 juin 2024 | I3: Taux du gain en capital capita jusqu'à concurrence de 250 k à partir du 25 juin 2024 | J3: Taux du gain en capital pour le montant supérieur à 250k après le 25 juin 2024 | K3: Impôts le ou après le 25 juin 2024 | L3: Taux combiné du gain en capital | M3: Difference ($) | N3: Difference (%)
B4: Entrer le gain en capital total (JVM - PBR de l'actif) | C4: 325000 | F4: 250000 | G4: =IF($C$3="CB",$U$8*$C$10, IF($C$3="AB",$U$9*$C$10, IF($C$3="SK",$U$10*$C$10, IF($C$3="MB", $U$11*$C$10, IF($C$3="ON",$U$12*$C$10, IF($C$3="QC", $U$13*$C$10, IF($C$3="NB", $U$14*$C$10, IF($C$3="NE", $U$15*$C$10, IF($C$3="IPE", $U$16*$C$10, IF($C$3="TNL", $U$17*$C$10,IF($C$3="YK",$U$18*$C$10,IF($C$3="TNO",$U$19*$C$10,IF($C$3="NT",$U$20*$C$10, "Choose Province"))))))))))))) -> 0.26655 | H4: =F4*G4 -> 66637.5 | I4: =G4 -> 0.26655 | J4: =IF($C$3="CB",$U$8*$C$11, IF($C$3="AB",$U$9*$C$11, IF($C$3="SK",$U$10*$C$11, IF($C$3="MB", $U$11*$C$11, IF($C$3="ON",$U$12*$C$11, IF($C$3="QC", $U$13*$C$11, IF($C$3="NB", $U$14*$C$11, IF($C$3="NE", $U$15*$C$11, IF($C$3="IPE", $U$16*$C$11, IF($C$3="TNL", $U$17*$C$11,IF($C$3="YK",$U$18*$C$11,IF($C$3="TNO",$U$19*$C$11,IF($C$3="NT",$U$20*$C$11, "Choose Province"))))))))))))) -> 0.3553999645 | K4: =(250000*G4)+((F4-250000)*J4) -> 66637.5 | L4: =K4/F4 -> 0.26655 | M4: =K4-H4 -> 0 | N4: =M4/F4 -> 0
F5: 300000 | G5: 0.26655 | H5: =F5*G5 -> 79965 | I5: =G5 -> 0.26655 | J5: 0.3553999645 | K5: =(250000*G5)+((F5-250000)*J5) -> 84407.49822 | L5: =K5/F5 -> 0.2813583274 | M5: =K5-H5 -> 4442.498223 | N5: =M5/F5 -> 0.01480832741
F6: 400000 | G6: 0.26655 | H6: 106620 | I6: 0.26655 | J6: 0.3553999645 | K6: 119947.4947 | L6: 0.2998687367 | M6: 13327.49467 | N6: 0.03331873667
B7: Résultats | F7: 500000 | G7: 0.26655 | H7: 133275 | I7: 0.26655 | J7: 0.3553999645 | K7: 155487.4911 | L7: 0.3109749822 | M7: 22212.49111 | N7: 0.04442498223 | T7: Province | U7: Personal MTR
B8: Taux d'imposition marginal le plus élevé | C8: =IF($C$3="CB",U8, IF($C$3="AB",U9, IF($C$3="SK",U10, IF($C$3="MB", U11, IF($C$3="ON",U12, IF($C$3="QC", U13, IF($C$3="NB", U14, IF($C$3="NE", U15, IF($C$3="IPE", U16, IF($C$3="TNL", U17,IF($C$3="YK",U18,IF($C$3="TNO",U19,IF($C$3="NT",U20, "Choose Province"))))))))))))) -> 0.5331 | F8: 600000 | G8: 0.26655 | H8: 159930 | I8: 0.26655 | J8: 0.3553999645 | K8: 191027.4876 | L8: 0.3183791459 | M8: 31097.48756 | N8: 0.05182914593 | T8: CB | U8: 0.535
B9: Taux d'inclusion des gains en capital | F9: 700000 | G9: 0.26655 | H9: 186585 | I9: 0.26655 | J9: 0.3553999645 | K9: 226567.484 | L9: 0.3236678343 | M9: 39982.48401 | N9: 0.0571178343 | T9: AB | U9: 0.48
B10: Taux d'inclusion des gains en capital avant le 25 juin 2024 | C10: 0.5 | F10: 800000 | G10: 0.26655 | H10: 213240 | I10: 0.26655 | J10: 0.3553999645 | K10: 262107.4805 | L10: 0.3276343506 | M10: 48867.48045 | N10: 0.06108435057 | T10: SK | U10: 0.475
B11: Taux d'inclusion après le 25 juin 2024 pour les gains supérieurs à 250k | C11: 0.6666666 | F11: 900000 | G11: 0.26655 | H11: 239895 | I11: 0.26655 | J11: 0.3553999645 | K11: 297647.4769 | L11: 0.3307194188 | M11: 57752.4769 | N11: 0.06416941878 | T11: MB | U11: 0.504
B12: Impôts avant le 25 juin 2024 | F12: 1000000 | G12: 0.26655 | H12: 266550 | I12: 0.26655 | J12: 0.3553999645 | K12: 333187.4733 | L12: 0.3331874733 | M12: 66637.47335 | N12: 0.06663747335 | T12: ON | U12: 0.5353
B13: Taux d'imposition sur les gains en capital | C13: =C8*C10 -> 0.26655 | F13: 1250000 | G13: 0.26655 | H13: 333187.5 | I13: 0.26655 | J13: 0.3553999645 | K13: 422037.4645 | L13: 0.3376299716 | M13: 88849.96446 | N13: 0.07107997157 | T13: QC | U13: 0.5331
B14: Impôts | C14: =C4*C10*C8 -> 86628.75 | F14: 1500000 | G14: 0.26655 | H14: 399825 | I14: 0.26655 | J14: 0.3553999645 | K14: 510887.4556 | L14: 0.3405916371 | M14: 111062.4556 | N14: 0.07404163705 | T14: NB | U14: 0.525
B15: Impôts le ou après le 25 juin 2024 | F15: 1750000 | G15: 0.26655 | H15: 466462.5 | I15: 0.26655 | J15: 0.3553999645 | K15: 599737.4467 | L15: 0.3427071124 | M15: 133274.9467 | N15: 0.07615711239 | T15: NE | U15: 0.54
B16: Impôts sur la première tranche de gain de 250 k | C16: =IF(C4<250000, (C4*C10*C8),(250000*C10*C8)) -> 66637.5 | F16: 2000000 | G16: 0.26655 | H16: 533100 | I16: 0.26655 | J16: 0.3553999645 | K16: 688587.4378 | L16: 0.3442937189 | M16: 155487.4378 | N16: 0.0777437189 | T16: IPE | U16: 0.5175
B17: Impôts sur la tranche supérieure à 250 k | C17: =IF(C4<250000,0,(C4-250000)*C11*C8) -> 26654.99733 | F17: 3000000 | G17: 0.26655 | H17: 799650 | I17: 0.26655 | J17: 0.3553999645 | K17: 1043987.402 | L17: 0.3479958008 | M17: 244337.4023 | N17: 0.08144580076 | T17: TNL | U17: 0.548
B18: Total des impôts | C18: =SUM(C16:C17) -> 93292.49733 | F18: 4000000 | G18: 0.26655 | H18: 1066200 | I18: 0.26655 | J18: 0.3553999645 | K18: 1399387.367 | L18: 0.3498468417 | M18: 333187.3667 | N18: 0.08329684168 | T18: YK | U18: 0.48
B19: Taux d'imposition combiné le ou après le 25 juin 2024 | F19: 5000000 | G19: 0.26655 | H19: 1332750 | I19: 0.26655 | J19: 0.3553999645 | K19: 1754787.331 | L19: 0.3509574662 | M19: 422037.3312 | N19: 0.08440746624 | T19: TNO | U19: 0.4705
B20: Taux d'imposition combiné pour les gains en capital après le 25 juin 2024 | C20: =C18/C4 -> 0.287053838 | T20: Nt | U20: 0.445
B21: Augementation des impôts le ou après le 25 juin 2024
B22: Augmentation des impôts ($) | C22: =C18-C14 -> 6663.747335 | F22: Hypothèses
B23: Augmentation des impôts (%) | C23: =(C18-C14)/C4 -> 0.02050383795 | F23: Le client est imposé au taux d'imposition marginal le plus élevé
F24: Ne prend pas en compte les frais de transactions (juridiques, comptables, droit de mutation, commissions, etc.)
F25: Basé sur les changements proposée dans le budget fédéral du 16 avril 2024 et dont le Québec s'harmonisera
F26: Présume que le gain en capital est réalisé à titre personnel et représente le gain en capital total (pas seulement le gain en capital imposable)
B29: Mise en garde Ce document ne vise qu’à fournir des renseignements d’ordre général. La Sun Life du Canada, compagnie d’assurance-vie ne donne pas de conseils juridiques, comptables ou fiscaux aux conseillers ou aux Clients. Avant de prendre une décision fondée sur les renseignements contenus dans cet article, assurez-vous de demander l’avis d’un professionnel qualifié qui étudiera votre situation en profondeur sur le plan juridique, comptable et fiscal. Tout exemple ou aperçu utilisé dans cet article a simplement pour but de vous aider à comprendre les renseignements qui y figurent et ne devrait en aucun cas servir de fondement aux opérations que vous pourriez effectuer. Publié at révisé par : Services de planification financière et successorale Sun Life Dernière révision en avril 2024 © Sun Life du Canada, compagnie d’assurance-vie, 2024. La Sun Life du Canada, compagnie d’assurance-vie est membre du groupe Sun Life.
